fUST/lending_fUST_20250725
["ID","MTS","AMOUNT","RATE_DAILY","PERIOD"]
[374680282,1753410647143,-1000.0,0.00018021,2]
[374680284,1753410647152,-539.34508524,0.00018049,2]
[374680286,1753410647162,-460.0,0.00018049,2]
[374680288,1753410647171,-559.18580524,0.00018049,2]
[374680290,1753410647183,-167.93456456,0.00018049,2]
[374680292,1753410647192,-460.0,0.00018049,2]
[374680294,1753410647202,-460.0,0.00018049,2]
[374680296,1753410647211,-531.83,0.00018049,2]
[374680298,1753410647221,-460.0,0.00018049,2]
[374680300,1753410647230,-460.0,0.00018049,2]
[374680302,1753410647239,-460.0,0.00018049,2]
[374680304,1753410647249,-460.0,0.00018049,2]
[374680306,1753410647258,-460.0,0.00018049,2]
[374680307,1753410647267,-460.0,0.00018049,2]
[374680309,1753410647277,-460.0,0.00018049,2]
[374680311,1753410647286,-460.0,0.00018049,2]
[374680313,1753410647297,-708.61,0.00018049,2]
[374680315,1753410647307,-460.0,0.00018049,2]
[374680317,1753410647316,-460.0,0.00018049,2]
[374680331,1753410647446,-707.69,0.00018049,2]
[374680333,1753410647456,-460.0,0.00018049,2]
[374680335,1753410647466,-460.0,0.00018049,2]
[374680337,1753410647476,-460.0,0.00018049,2]
[374680338,1753410647487,-460.0,0.00018049,2]
[374680341,1753410647505,-460.0,0.00018049,2]
[374680342,1753410647515,-460.0,0.00018049,2]
[374680344,1753410647525,-460.0,0.00018049,2]
[374680346,1753410647536,-460.0,0.00018049,2]
[374680348,1753410647547,-495.41,0.00018049,2]
[374680350,1753410647557,-460.0,0.00018049,2]
[374680352,1753410647570,-460.0,0.00018049,2]
[374680354,1753410647580,-460.0,0.00018049,2]
[374680356,1753410647590,-460.0,0.00018049,2]
[374680358,1753410647599,-460.0,0.00018049,2]
[374680360,1753410647609,-1047.05,0.00018049,2]
[374680362,1753410647618,-189.29,0.00018049,2]
[374680364,1753410647627,-460.0,0.00018049,2]
[374680366,1753410647636,-584.03,0.00018049,2]
[374680368,1753410647646,-460.0,0.00018049,2]
[374680370,1753410647655,-460.0,0.00018049,2]
[374680372,1753410647665,-460.0,0.00018049,2]
[374680374,1753410647674,-460.0,0.00018049,2]
[374680375,1753410647683,-467.72454961,0.00018049,2]
[374680377,1753410647693,-374.98303447,0.00018049,2]
[374680379,1753410647702,-467.2752125,0.00018049,2]
[374680381,1753410647712,-773.56,0.00018049,2]
[374680383,1753410647721,-460.0,0.00018049,2]
[374680385,1753410647731,-460.0,0.00018049,2]
[374680387,1753410647740,-1012.15,0.00018049,2]
[374680389,1753410647750,-519.48,0.00018049,2]
[374680391,1753410647759,-797.69,0.00018049,2]
[374680393,1753410647770,-6186.6,0.00018049,2]
[374680395,1753410647779,-1104.74,0.00018049,2]
[374680397,1753410647790,-2434.21,0.00018049,2]
[374680399,1753410647800,-489.76,0.00018049,2]
[374680401,1753410647810,-460.0,0.00018049,2]
[374680403,1753410647819,-824.96,0.00018049,2]
[374680405,1753410647829,-3551.94,0.00018049,2]
[374680407,1753410647838,-460.0,0.00018049,2]
[374680409,1753410647848,-460.0,0.00018049,2]
[374680411,1753410647857,-460.0,0.00018049,2]
[374680413,1753410647867,-460.0,0.00018049,2]
[374680415,1753410647876,-537.45,0.00018049,2]
[374680417,1753410647885,-597.97,0.00018049,2]
[374680419,1753410647894,-460.0,0.00018049,2]
[374680421,1753410647904,-460.0,0.00018049,2]
[374680423,1753410647913,-151.0,0.00018049,2]
[374680425,1753410647922,-769.35,0.00018049,2]
[374680427,1753410647932,-548.05,0.00018049,2]
[374680429,1753410647941,-3618.34,0.00018049,2]
[374680431,1753410647950,-460.0,0.00018049,2]
[374680433,1753410647960,-151.0,0.00018049,2]
[374680435,1753410647969,-669.02,0.00018049,2]
[374680436,1753410647978,-460.0,0.00018049,2]
[374680438,1753410647987,-618.66,0.00018049,2]
[374680440,1753410647996,-2183.0,0.00018049,2]
[374680442,1753410648006,-798.0,0.00018049,2]
[374680444,1753410648014,-1662.31,0.00018049,2]
[374680447,1753410648023,-2580.53,0.00018049,2]
[374680449,1753410648031,-723.52,0.00018049,2]
[374680451,1753410648040,-2911.49,0.00018049,2]
[374680452,1753410648047,-460.0,0.00018049,2]
[374680454,1753410648055,-1899.99,0.00018049,2]
[374680456,1753410648062,-823.25,0.00018049,2]
[374680458,1753410648072,-460.0,0.00018049,2]
[374680460,1753410648081,-460.0,0.00018049,2]
[374680462,1753410648090,-1184.05,0.00018049,2]
[374680464,1753410648100,-460.0,0.00018049,2]
[374680466,1753410648111,-1186.37,0.00018049,2]
[374680468,1753410648121,-845.56,0.00018049,2]
[374680470,1753410648130,-466.68,0.00018049,2]
[374680472,1753410648141,-1166.67,0.00018049,2]
[374680474,1753410648150,-152.187531,0.00018049,2]
[374680476,1753410648159,-460.0,0.00018049,2]
[374680478,1753410648168,-460.0,0.00018049,2]
[374680480,1753410648177,-460.0,0.00018049,2]
[374680482,1753410648187,-460.0,0.00018049,2]
[374680484,1753410648196,-1960.72,0.00018049,2]
[374680486,1753410648206,-1837.22,0.00018049,2]
[374680488,1753410648215,-460.0,0.00018049,2]
[374680490,1753410648225,-151.0,0.00018049,2]
[374680492,1753410648235,-684.41,0.00018049,2]
[374680494,1753410648246,-2087.95,0.00018049,2]
[374680496,1753410648256,-805.27,0.00018049,2]
[374680498,1753410648266,-460.0,0.00018049,2]
[374680500,1753410648277,-1307.26,0.00018049,2]
[374680502,1753410648287,-151.542969,0.00018049,2]
[374680504,1753410648300,-151.0,0.00018049,2]
[374680506,1753410648309,-460.0,0.00018049,2]
[374680508,1753410648318,-857.62,0.00018049,2]
[374680510,1753410648328,-460.0,0.00018049,2]
[374680512,1753410648338,-460.0,0.00018049,2]
[374680514,1753410648347,-460.0,0.00018049,2]
[374680516,1753410648357,-460.0,0.00018049,2]
[374680517,1753410648366,-151.0,0.00018049,2]
[374680520,1753410648377,-2118.52,0.00018049,2]
[374680521,1753410648386,-151.0,0.00018049,2]
[374680523,1753410648396,-460.0,0.00018049,2]
[374680525,1753410648405,-477.31,0.00018049,2]
[374680527,1753410648415,-151.0,0.00018049,2]
[374680529,1753410648424,-460.0,0.00018049,2]
[374680531,1753410648434,-460.0,0.00018049,2]
[374680533,1753410648444,-460.0,0.00018049,2]
[374680535,1753410648453,-994.19,0.00018049,2]
[374680537,1753410648464,-460.0,0.00018049,2]
[374680539,1753410648474,-460.0,0.00018049,2]
[374680541,1753410648484,-460.0,0.00018049,2]
[374680543,1753410648498,-689.09,0.00018049,2]
[374680545,1753410648508,-460.0,0.00018049,2]
[374680547,1753410648518,-5280.61,0.00018049,2]
[374680549,1753410648528,-851.66,0.00018049,2]
[374680551,1753410648539,-460.0,0.00018049,2]
[374680553,1753410648550,-460.0,0.00018049,2]
[374680555,1753410648560,-818.01,0.00018049,2]
[374680557,1753410648570,-1060.82,0.00018049,2]
[374680559,1753410648579,-460.0,0.00018049,2]
[374680561,1753410648589,-2954.27,0.00018049,2]
[374680563,1753410648598,-261.53111519,0.00018049,2]
[374680565,1753410648607,-460.0,0.00018049,2]
[374680567,1753410648617,-668.67,0.00018049,2]
[374680569,1753410648626,-460.0,0.00018049,2]
[374680571,1753410648635,-320.21407112,0.00018049,2]
[374680573,1753410648645,-460.0,0.00018049,2]
[374680575,1753410648654,-460.0,0.00018049,2]
[374680577,1753410648663,-460.0,0.0001805,2]
[374680579,1753410648673,-460.0,0.0001805,2]
[374680581,1753410648683,-515.15,0.0001805,2]
[374680583,1753410648692,-460.0,0.0001805,2]
[374680585,1753410648702,-460.0,0.0001805,2]
[374680587,1753410648711,-460.0,0.0001805,2]
[374680589,1753410648721,-555.36,0.0001805,2]
[374680591,1753410648730,-460.0,0.0001805,2]
[374680592,1753410648739,-460.0,0.0001805,2]
[374680594,1753410648748,-460.0,0.0001805,2]
[374680597,1753410648760,-1327.67,0.0001805,2]
[374680599,1753410648774,-460.0,0.0001805,2]
[374680602,1753410648788,-460.0,0.0001805,2]
[374680604,1753410648807,-460.0,0.0001805,2]
[374680606,1753410648819,-460.0,0.0001805,2]
[374680608,1753410648831,-460.0,0.0001805,2]
[374680611,1753410648844,-523.23,0.0001805,2]
[374680613,1753410648857,-460.0,0.0001805,2]
[374680615,1753410648871,-491.61,0.0001805,2]
[374680618,1753410648885,-460.0,0.0001805,2]
[374680620,1753410648897,-460.0,0.0001805,2]
[374680623,1753410648911,-460.0,0.0001805,2]
[374680625,1753410648925,-460.0,0.0001805,2]
[374680627,1753410648938,-460.0,0.0001805,2]
[374680630,1753410648950,-500.0,0.0001805,2]
[374680632,1753410648963,-460.0,0.0001805,2]
[374680634,1753410648974,-636.24,0.0001805,2]
[374680636,1753410648987,-460.0,0.0001805,2]
[374680639,1753410649001,-460.0,0.0001805,2]
[374680641,1753410649013,-460.0,0.0001805,2]
[374680643,1753410649026,-460.0,0.0001805,2]
[374680645,1753410649037,-151.78885155,0.0001805,2]
[374680647,1753410649053,-237.45959067,0.0001805,2]
[374680648,1753410649065,-460.0,0.00018051,2]
[374680649,1753410649078,-460.0,0.00018051,2]
[374680650,1753410649092,-460.0,0.00018051,2]
[374680651,1753410649106,-460.0,0.00018051,2]
[374680652,1753410649119,-460.0,0.00018051,2]
[374680653,1753410649133,-460.0,0.00018051,2]
[374680654,1753410649147,-460.0,0.00018051,2]
[374680655,1753410649161,-460.0,0.00018051,2]
[374680658,1753410649173,-460.0,0.00018051,2]
[374680660,1753410649184,-460.0,0.00018051,2]
[374680662,1753410649195,-460.0,0.00018051,2]
[374680664,1753410649206,-460.0,0.00018051,2]
[374680667,1753410649220,-210.47379534,0.00018051,2]
[374680669,1753410649234,-500.0,0.00018053,2]
[374680672,1753410649248,-151.0,0.00018053,2]
[374680674,1753410649258,-152.056768,0.00018053,2]
[374680676,1753410649270,-151.0,0.00018053,2]
[374680678,1753410649284,-395.662983,0.00018053,2]
[374680681,1753410649299,-395.662983,0.00018053,2]
[374680683,1753410649310,-460.0,0.00018054,2]
[374680685,1753410649321,-460.0,0.00018054,2]
[374680687,1753410649331,-460.0,0.00018054,2]
[374680689,1753410649342,-460.0,0.00018054,2]
[374680691,1753410649354,-460.0,0.00018054,2]
[374680693,1753410649365,-460.0,0.00018054,2]
[374680696,1753410649377,-460.0,0.00018054,2]
[374680698,1753410649388,-460.0,0.00018054,2]
[374680700,1753410649399,-529.65,0.00018054,2]
[374680702,1753410649409,-460.0,0.00018054,2]
[374680704,1753410649421,-509.52806293,0.00018054,2]
[374680706,1753410649432,-460.0,0.00018054,2]
[374680709,1753410649444,-688.45,0.00018054,2]
[374680711,1753410649454,-460.0,0.00018054,2]
[374680713,1753410649465,-151.0,0.00018054,2]
[374680715,1753410649477,-151.0,0.00018054,2]
[374680717,1753410649493,-460.0,0.00018054,2]
[374680720,1753410649505,-460.0,0.00018054,2]
[374680722,1753410649516,-221.595149,0.00018054,2]
[374680724,1753410649527,-221.595149,0.00018054,2]
[374680726,1753410649542,-460.0,0.00018054,2]
[374680728,1753410649553,-460.0,0.00018054,2]
[374680730,1753410649564,-315.154865,0.00018054,2]
[374680733,1753410649577,-315.154865,0.00018054,2]
[374680735,1753410649589,-500.0,0.00018056,2]
[374680737,1753410649600,-180.07,0.00018063,2]
[374680739,1753410649612,-1000.0,0.00018121,2]
[374680741,1753410649623,-1000.0,0.00018121,2]
[374680744,1753410649635,-1000.0,0.00018121,2]
[374680746,1753410649646,-1000.0,0.00018121,2]
[374680748,1753410649657,-6775.75941783,0.00018141,2]
[374680750,1753410649669,-185.14377034,0.00018192,2]
[374680753,1753410649681,-559.7,0.00018224,2]
[374680755,1753410649693,-494.51,0.00018224,2]
[374680757,1753410649704,-469.52,0.00018224,2]
[374680759,1753410649715,-515.84,0.00018224,2]
[374680761,1753410649726,-554.32,0.00018224,2]
[374680764,1753410649737,-2480.89,0.00018224,2]
[374680766,1753410649749,-1000.0,0.00018321,2]
[374680768,1753410649760,-1000.0,0.00018321,2]
[374680770,1753410649771,-460.0,0.00018323,2]
[374680772,1753410649782,-460.0,0.00018323,2]
[374680775,1753410649797,-464.64918398,0.00018323,2]
[374680777,1753410649808,-531.83,0.00018323,2]
[374680779,1753410649819,-460.0,0.00018323,2]
[374680781,1753410649831,-460.0,0.00018323,2]
[374680783,1753410649842,-460.0,0.00018323,2]
[374680786,1753410649853,-275.19339447,0.00018323,2]
[374680788,1753410649864,-460.0,0.00018323,2]
[374680790,1753410649875,-460.0,0.00018323,2]
[374680792,1753410649886,-460.0,0.00018323,2]
[374680794,1753410649898,-708.61,0.00018323,2]
[374680797,1753410649909,-460.0,0.00018323,2]
[374680799,1753410649920,-707.69,0.00018323,2]
[374680801,1753410649931,-151.0,0.00018323,2]
[374680803,1753410649942,-460.0,0.00018323,2]
[374680805,1753410649953,-460.0,0.00018323,2]
[374680808,1753410649964,-460.0,0.00018323,2]
[374680810,1753410649975,-151.0,0.00018323,2]
[374680812,1753410649986,-460.0,0.00018323,2]
[374680814,1753410649997,-460.0,0.00018323,2]
[374680816,1753410650009,-495.41,0.00018323,2]
[374680819,1753410650020,-460.0,0.00018323,2]
[374680821,1753410650031,-460.0,0.00018323,2]
[374680823,1753410650042,-460.0,0.00018323,2]
[374680825,1753410650054,-454.7415193,0.00018323,2]
[374680827,1753410650065,-151.983606,0.00018323,2]
[374680829,1753410650076,-460.0,0.00018323,2]
[374680832,1753410650087,-1047.05,0.00018323,2]
[374680834,1753410650098,-151.0,0.00018323,2]
[374680836,1753410650110,-202.786729,0.00018323,2]
[374680838,1753410650121,-202.786729,0.00018323,2]
[374680840,1753410650131,-584.03,0.00018323,2]
[374680842,1753410650141,-460.0,0.00018323,2]
[374680844,1753410650151,-460.0,0.00018323,2]
[374680846,1753410650162,-216.628189,0.00018323,2]
[374680848,1753410650171,-216.628189,0.00018323,2]
[374680850,1753410650181,-167.690374,0.00018323,2]
[374680852,1753410650190,-460.0,0.00018323,2]
[374680855,1753410650201,-167.690374,0.00018323,2]
[374680857,1753410650210,-460.0,0.00018323,2]
[374680859,1753410650219,-151.0,0.00018323,2]
[374680861,1753410650229,-773.56,0.00018323,2]
[374680863,1753410650238,-460.0,0.00018323,2]
[374680865,1753410650248,-460.0,0.00018323,2]
[374680867,1753410650257,-1012.15,0.00018323,2]
[374680869,1753410650267,-519.48,0.00018323,2]
[374680871,1753410650276,-797.69,0.00018323,2]
[374680873,1753410650286,-6186.6,0.00018323,2]
[374680875,1753410650296,-1104.74,0.00018323,2]
[374680877,1753410650305,-2434.21,0.00018323,2]
[374680879,1753410650315,-489.76,0.00018323,2]
[374680881,1753410650325,-460.0,0.00018323,2]
[374680904,1753410650542,-824.96,0.00018323,2]
[374680908,1753410650569,-3551.94,0.00018323,2]
[374680910,1753410650584,-460.0,0.00018323,2]
[374680912,1753410650594,-460.0,0.00018323,2]
[374680914,1753410650605,-460.0,0.00018323,2]
[374680917,1753410650615,-537.45,0.00018323,2]
[374680919,1753410650624,-597.97,0.00018323,2]
[374680920,1753410650634,-460.0,0.00018323,2]
[374680923,1753410650643,-460.0,0.00018323,2]
[374680925,1753410650653,-769.35,0.00018323,2]
[374680926,1753410650663,-548.05,0.00018323,2]
[374680928,1753410650673,-3618.34,0.00018323,2]
[374680931,1753410650683,-540.0,0.00018323,2]
[374680933,1753410650692,-669.02,0.00018323,2]
[374680935,1753410650702,-460.0,0.00018323,2]
[374680937,1753410650712,-618.66,0.00018323,2]
[374680939,1753410650721,-2183.0,0.00018323,2]
[374680940,1753410650730,-798.0,0.00018323,2]
[374680942,1753410650739,-222.61079,0.00018323,2]
[374680944,1753410650749,-222.61079,0.00018323,2]
[374680947,1753410650758,-1662.31,0.00018323,2]
[374680949,1753410650768,-2580.53,0.00018323,2]
[374680951,1753410650778,-723.52,0.00018323,2]
[374680953,1753410650788,-460.0,0.00018323,2]
[374680954,1753410650799,-2911.49,0.00018323,2]
[374680957,1753410650809,-1899.99,0.00018323,2]
[374680958,1753410650818,-823.25,0.00018323,2]
[374680961,1753410650828,-460.0,0.00018323,2]
[374680962,1753410650838,-460.0,0.00018323,2]
[374680965,1753410650847,-1184.05,0.00018323,2]
[374680966,1753410650856,-460.0,0.00018323,2]
[374680969,1753410650867,-845.56,0.00018323,2]
[374680971,1753410650876,-1186.37,0.00018323,2]
[374680973,1753410650885,-466.68,0.00018323,2]
[374680975,1753410650894,-1166.67,0.00018323,2]
[374680977,1753410650903,-460.0,0.00018323,2]
[374680979,1753410650913,-460.0,0.00018323,2]
[374680981,1753410650922,-460.0,0.00018323,2]
[374680983,1753410650932,-1960.72,0.00018323,2]
[374680984,1753410650942,-1837.22,0.00018323,2]
[374680987,1753410650952,-684.41,0.00018323,2]
[374680989,1753410650962,-2087.95,0.00018323,2]
[374680991,1753410650971,-805.27,0.00018323,2]
[374680993,1753410650980,-1307.26,0.00018323,2]
[374680995,1753410650989,-151.0,0.00018323,2]
[374680997,1753410650998,-460.0,0.00018323,2]
[374680999,1753410651007,-857.62,0.00018323,2]
[374681001,1753410651017,-460.0,0.00018323,2]
[374681003,1753410651026,-460.0,0.00018323,2]
[374681005,1753410651035,-460.0,0.00018323,2]
[374681007,1753410651047,-277.98602977,0.00018323,2]
[374681009,1753410651057,-2118.52,0.00018323,2]
[374681010,1753410651065,-151.0,0.00018323,2]
[374681013,1753410651075,-460.0,0.00018323,2]
[374681015,1753410651085,-477.31,0.00018323,2]
[374681016,1753410651095,-151.0,0.00018323,2]
[374681019,1753410651104,-460.0,0.00018323,2]
[374681020,1753410651114,-460.0,0.00018323,2]
[374681022,1753410651123,-460.0,0.00018323,2]
[374681025,1753410651133,-994.19,0.00018323,2]
[374681027,1753410651143,-460.0,0.00018323,2]
[374681029,1753410651154,-460.0,0.00018323,2]
[374681031,1753410651163,-460.0,0.00018323,2]
[374681033,1753410651172,-689.09,0.00018323,2]
[374681035,1753410651182,-851.66,0.00018323,2]
[374681037,1753410651191,-460.0,0.00018323,2]
[374681039,1753410651201,-460.0,0.00018323,2]
[374681041,1753410651211,-5280.61,0.00018323,2]
[374681043,1753410651220,-818.01,0.00018323,2]
[374681045,1753410651229,-1060.82,0.00018323,2]
[374681047,1753410651239,-2954.27,0.00018323,2]
[374681049,1753410651248,-668.67,0.00018323,2]
[374681051,1753410651257,-460.0,0.00018323,2]
[374681053,1753410651267,-460.0,0.00018323,2]
[374681055,1753410651276,-460.0,0.00018324,2]
[374681057,1753410651286,-515.15,0.00018324,2]
[374681059,1753410651296,-460.0,0.00018324,2]
[374681061,1753410651305,-460.0,0.00018324,2]
[374681063,1753410651315,-555.36,0.00018324,2]
[374681064,1753410651324,-464.754519,0.00018324,2]
[374681066,1753410651334,-460.0,0.00018324,2]
[374681069,1753410651344,-1327.67,0.00018324,2]
[374681071,1753410651353,-460.0,0.00018324,2]
[374681072,1753410651364,-460.0,0.00018324,2]
[374681075,1753410651373,-460.0,0.00018324,2]
[374681077,1753410651382,-460.0,0.00018324,2]
[374681079,1753410651392,-460.0,0.00018324,2]
[374681081,1753410651401,-523.23,0.00018324,2]
[374681083,1753410651411,-464.16800289,0.00018324,2]
[374681085,1753410651420,-491.61,0.00018324,2]
[374681086,1753410651429,-460.0,0.00018324,2]
[374681089,1753410651438,-460.0,0.00018324,2]
[374681091,1753410651448,-460.0,0.00018324,2]
[374681092,1753410651458,-460.0,0.00018324,2]
[374681095,1753410651468,-460.0,0.00018324,2]
[374681097,1753410651477,-500.0,0.00018324,2]
[374681099,1753410651489,-460.0,0.00018324,2]
[374681115,1753410651708,-636.24,0.00018324,2]
[374681116,1753410651718,-460.0,0.00018324,2]
[374681117,1753410651728,-460.0,0.00018324,2]
[374681118,1753410651737,-460.0,0.00018324,2]
[374681119,1753410651747,-460.0,0.00018325,2]
[374681120,1753410651759,-460.0,0.00018325,2]
[374681121,1753410651768,-460.0,0.00018325,2]
[374681122,1753410651777,-463.25321709,0.00018325,2]
[374681123,1753410651787,-306.48156,0.00018325,2]
[374681124,1753410651796,-460.0,0.00018325,2]
[374681125,1753410651806,-460.0,0.00018325,2]
[374681126,1753410651815,-460.0,0.00018325,2]
[374681127,1753410651825,-460.0,0.00018325,2]
[374681128,1753410651834,-500.0,0.00018325,2]
[374681129,1753410651843,-460.0,0.00018325,2]
[374681130,1753410651852,-460.0,0.00018325,2]
[374681131,1753410651862,-460.0,0.00018325,2]
[374681132,1753410651871,-611.736629,0.00018325,2]
[374681133,1753410651880,-611.736629,0.00018325,2]
[374681134,1753410651890,-460.0,0.00018325,2]
[374681135,1753410651899,-460.0,0.00018328,2]
[374681136,1753410651909,-474.3334224,0.00018328,2]
[374681137,1753410651918,-460.0,0.00018328,2]
[374681138,1753410651927,-460.0,0.00018328,2]
[374681139,1753410651937,-529.65,0.00018328,2]
[374681140,1753410651946,-460.0,0.00018328,2]
[374681141,1753410651956,-688.45,0.00018328,2]
[374681142,1753410651965,-460.0,0.00018328,2]
[374681143,1753410651974,-460.0,0.00018328,2]
[374681144,1753410651983,-460.0,0.00018328,2]
[374681145,1753410651993,-460.0,0.00018328,2]
[374681146,1753410652002,-500.0,0.0001833,2]
[374681147,1753410652011,-500.0,0.00018373,2]
[374681148,1753410652021,-500.0,0.00018373,2]
[374681149,1753410652030,-352.09949821,0.00018373,2]
[374681150,1753410652039,-500.0,0.00018373,2]
[374681151,1753410652048,-500.0,0.00018373,2]
[374681152,1753410652058,-500.0,0.00018373,2]
[374681153,1753410652067,-500.0,0.00018373,2]
[374681154,1753410652077,-6775.75941783,0.00018383,2]
[374681155,1753410652086,-151.0,0.00018383,2]
[374681156,1753410652095,-151.0,0.00018383,2]
[374681157,1753410652105,-500.0,0.00018469,2]
[374681158,1753410652114,-500.61112416,0.00018475,2]
[374681159,1753410652124,-500.0,0.00018476,2]
[374681160,1753410652134,-503.34196874,0.00018476,2]
[374681161,1753410652145,-500.0,0.00018476,2]
[374681162,1753410652156,-500.0,0.00018476,2]
[374681163,1753410652167,-500.0,0.00018476,2]
[374681164,1753410652177,-160.0,0.00018493,2]
[374681165,1753410652188,-559.7,0.00018498,2]
[374681166,1753410652198,-494.51,0.00018498,2]
[374681167,1753410652209,-469.52,0.00018498,2]
[374681168,1753410652219,-515.84,0.00018498,2]
[374681169,1753410652228,-554.32,0.00018498,2]
[374681170,1753410652238,-2480.89,0.00018498,2]
[374681171,1753410652248,-151.0,0.000185,2]
[374681172,1753410652257,-1175.33873934,0.00018549,2]
[374681173,1753410652267,-4696.65360242,0.00018549,2]
[374681174,1753410652277,-500.0,0.00018568,2]
[374681175,1753410652287,-193.03345002,0.00018597,2]
[374681176,1753410652296,-460.0,0.00018597,2]
[374681177,1753410652306,-531.83,0.00018597,2]
[374681178,1753410652315,-460.0,0.00018597,2]
[374681179,1753410652326,-460.0,0.00018597,2]
[374681180,1753410652336,-460.0,0.00018597,2]
[374681181,1753410652345,-151.903171,0.00018597,2]
[374681182,1753410652355,-460.0,0.00018597,2]
[374681183,1753410652365,-460.0,0.00018597,2]
[374681184,1753410652374,-151.0,0.00018597,2]
[374681185,1753410652384,-708.61,0.00018597,2]
[374681186,1753410652394,-460.0,0.00018597,2]
[374681187,1753410652403,-707.69,0.00018597,2]
[374681188,1753410652413,-460.0,0.00018597,2]
[374681189,1753410652423,-460.0,0.00018597,2]
[374681190,1753410652432,-460.0,0.00018597,2]
[374681191,1753410652442,-151.0,0.00018597,2]
[374681192,1753410652451,-460.0,0.00018597,2]
[374681193,1753410652460,-495.41,0.00018597,2]
[374681194,1753410652470,-460.0,0.00018597,2]
[374681195,1753410652479,-460.0,0.00018597,2]
[374681196,1753410652492,-460.0,0.00018597,2]
[374681197,1753410652502,-460.0,0.00018597,2]
[374681198,1753410652511,-1047.05,0.00018597,2]
[374681199,1753410652520,-584.03,0.00018597,2]
[374681200,1753410652530,-460.0,0.00018597,2]
[374681202,1753410652540,-460.0,0.00018597,2]
[374681204,1753410652551,-460.0,0.00018597,2]
[374681206,1753410652560,-460.0,0.00018597,2]
[374681207,1753410652573,-151.0,0.00018597,2]
[374681208,1753410652584,-773.56,0.00018597,2]
[374681209,1753410652592,-460.0,0.00018597,2]
[374681210,1753410652602,-151.0,0.00018597,2]
[374681212,1753410652611,-154.739658,0.00018597,2]
[374681214,1753410652621,-1012.15,0.00018597,2]
[374681216,1753410652630,-519.48,0.00018597,2]
[374681218,1753410652640,-797.69,0.00018597,2]
[374681220,1753410652650,-6186.6,0.00018597,2]
[374681222,1753410652660,-1104.74,0.00018597,2]
[374681224,1753410652669,-2434.21,0.00018597,2]
[374681226,1753410652679,-489.76,0.00018597,2]
[374681228,1753410652688,-460.0,0.00018597,2]
[374681230,1753410652698,-824.96,0.00018597,2]
[374681232,1753410652707,-3551.94,0.00018597,2]
[374681234,1753410652717,-151.0,0.00018597,2]
[374681236,1753410652726,-460.0,0.00018597,2]
[374681238,1753410652735,-460.0,0.00018597,2]
[374681240,1753410652744,-460.0,0.00018597,2]
[374681242,1753410652753,-537.45,0.00018597,2]
[374681244,1753410652763,-597.97,0.00018597,2]
[374681246,1753410652772,-480.36917218,0.00018597,2]
[374681248,1753410652782,-460.0,0.00018597,2]
[374681250,1753410652791,-151.0,0.00018597,2]
[374681252,1753410652802,-769.35,0.00018597,2]